fUSD/lending_fUSD_20241024
["ID","MTS","AMOUNT","RATE_DAILY","PERIOD"]
[340744845,1729770680690,-558.83,0.00065753,120]
[340744846,1729770680700,-5079.61,0.00065753,120]
[340744847,1729770680710,-612.41,0.00065753,14]
[340744848,1729770680719,-560.39,0.00065753,120]
[340744849,1729770680729,-679.18,0.00065753,120]
[340744850,1729770680738,-859.58,0.00065753,120]
[340744851,1729770680749,-720.96,0.00065753,120]
[340744852,1729770680759,-902.51,0.00065753,120]
[340744853,1729770680768,-541.21,0.00065753,120]
[340744854,1729770680777,-500.0,0.00065753,120]
[340744855,1729770680787,-898.97,0.00065753,120]
[340744856,1729770680798,-883.91,0.00065753,120]
[340744857,1729770680807,-622.25,0.00065753,120]
[340744858,1729770680817,-4880.54,0.00065753,120]
[340744859,1729770680827,-898.7,0.00065753,120]
[340744860,1729770680837,-1555.96,0.00065753,120]
[340744861,1729770680846,-1699.04,0.00065753,120]
[340744862,1729770680855,-764.73,0.00065753,120]
[340744863,1729770680865,-663.54,0.00065753,120]
[340744864,1729770680875,-898.61,0.00065753,120]
[340744865,1729770680884,-1452.21,0.00065753,120]
[340744866,1729770680894,-13644.44,0.00065753,120]
[340744867,1729770680903,-539.88,0.00065753,120]
[340744868,1729770680913,-510.25,0.00065753,120]
[340744869,1729770680923,-16013.8,0.00065753,5]
[340744870,1729770680934,-381.1,0.00065753,7]
[340744871,1729770680943,-500.0,0.00065753,120]
[340744872,1729770680952,-671.29,0.00065753,120]
[340744873,1729770680962,-529.99,0.00065753,120]
[340744874,1729770680973,-500.0,0.00065753,120]
[340744875,1729770680982,-725.63,0.00065753,120]
[340744876,1729770680992,-1262.9,0.00065753,120]
[340744877,1729770681002,-1870.81,0.00065753,120]
[340744878,1729770681013,-5826.9,0.00065753,120]
[340744879,1729770681023,-518.14,0.00065753,120]
[340744880,1729770681032,-521.29,0.00065753,120]
[340744881,1729770681042,-953.95,0.00065753,7]
[340744882,1729770681052,-1473.4,0.00065753,120]
[340744883,1729770681062,-23014.84,0.00065753,120]
[340744884,1729770681072,-1061.17,0.00065753,120]
[340744885,1729770681081,-1889.61,0.00065753,120]
[340744886,1729770681090,-500.0,0.00065753,120]
[340744887,1729770681101,-500.0,0.00065753,120]
[340744888,1729770681111,-5499.42,0.00065753,120]
[340744889,1729770681122,-500.0,0.00065753,120]
[340744890,1729770681131,-515.53,0.00065753,120]
[340744891,1729770681140,-541.02,0.00065753,120]
[340744892,1729770681149,-560.22,0.00065753,120]
[340744893,1729770681159,-508.61,0.00065753,120]
[340744894,1729770681168,-1548.55,0.00065753,120]
[340744895,1729770681177,-956.25,0.00065753,120]
[340744896,1729770681187,-1040.84,0.00065753,120]
[340744897,1729770681197,-582.09,0.00065753,120]
[340744898,1729770681206,-150.32,0.00065753,60]
[340744899,1729770681216,-150.0,0.00065753,60]
[340744900,1729770681225,-150.0,0.00065753,60]
[340744901,1729770681235,-4920.74267271,0.00065957,120]
[340744902,1729770681244,-4920.74267271,0.00065979,120]
[340744903,1729770681254,-300.0,0.00066,120]
[340744904,1729770681264,-149552.00485548,0.00066,120]
[340744905,1729770681273,-153.79579483,0.00066026,120]
[340744906,1729770681292,-1299.26,0.00066027,120]
[340744907,1729770681304,-507.96,0.00066027,120]
[340744908,1729770681314,-534.72,0.00066027,120]
[340744909,1729770681324,-1738.65,0.00066027,120]
[340744910,1729770681333,-655.38,0.00066027,120]
[340744911,1729770681344,-1176.07,0.00066027,120]
[340744912,1729770681353,-878.78,0.00066027,120]
[340744913,1729770681363,-1980.98,0.00066027,120]
[340744914,1729770681373,-894.75,0.00066027,120]
[340744915,1729770681382,-579.03,0.00066027,120]
[340744916,1729770681392,-500.0,0.00066027,120]
[340744917,1729770681402,-579.71,0.00066027,120]
[340744918,1729770681412,-1003.46,0.00066027,120]
[340744919,1729770681424,-978.86,0.00066027,120]
[340744920,1729770681433,-500.0,0.00066027,120]
[340744921,1729770681443,-907.35,0.00066027,120]
[340744922,1729770681452,-1698.95,0.00066027,120]
[340744923,1729770681461,-212.7346764,0.00066027,120]
[340744924,1729770681471,-500.0,0.00066027,120]
[340744925,1729770681480,-1664.51,0.00066027,120]
[340744926,1729770681490,-1365.12,0.00066027,120]
[340744927,1729770681499,-558.83,0.00066027,120]
[340744928,1729770681509,-5079.61,0.00066027,120]
[340744929,1729770681519,-612.41,0.00066027,14]
[340744930,1729770681528,-560.39,0.00066027,120]
[340744931,1729770681537,-679.18,0.00066027,120]
[340744932,1729770681546,-859.58,0.00066027,120]
[340744933,1729770681556,-720.96,0.00066027,120]
[340744934,1729770681651,-902.51,0.00066027,120]
[340744935,1729770681661,-541.21,0.00066027,120]
[340744936,1729770681672,-500.0,0.00066027,120]
[340744937,1729770681682,-898.97,0.00066027,120]
[340744938,1729770681693,-883.91,0.00066027,120]
[340744939,1729770681703,-622.25,0.00066027,120]
[340744940,1729770681713,-4880.54,0.00066027,120]
[340744941,1729770681723,-898.7,0.00066027,120]
[340744942,1729770681733,-1555.96,0.00066027,120]
[340744943,1729770681743,-1699.04,0.00066027,120]
[340744944,1729770681753,-764.73,0.00066027,120]
[340744945,1729770681763,-663.54,0.00066027,120]
[340744946,1729770681773,-898.61,0.00066027,120]
[340744947,1729770681784,-1452.21,0.00066027,120]
[340744948,1729770681793,-13644.44,0.00066027,120]
[340744949,1729770681804,-539.88,0.00066027,120]
[340744950,1729770681814,-510.25,0.00066027,120]
[340744951,1729770681825,-16013.8,0.00066027,5]
[340744952,1729770681835,-381.1,0.00066027,7]
[340744953,1729770681845,-500.0,0.00066027,120]
[340744954,1729770681856,-671.29,0.00066027,120]
[340744955,1729770681865,-529.99,0.00066027,120]
[340744956,1729770681875,-415.93233364,0.00066027,120]
[340744957,1729770681885,-725.63,0.00066027,120]
[340744958,1729770681895,-1262.9,0.00066027,120]
[340744959,1729770681904,-1870.81,0.00066027,120]
[340744960,1729770681914,-5826.9,0.00066027,120]
[340744961,1729770681924,-518.14,0.00066027,120]
[340744962,1729770681934,-521.29,0.00066027,120]
[340744963,1729770681944,-953.95,0.00066027,7]
[340744964,1729770681953,-1473.4,0.00066027,120]
[340744965,1729770681963,-23014.84,0.00066027,120]
[340744966,1729770681973,-1061.17,0.00066027,120]
[340744967,1729770681982,-1889.61,0.00066027,120]
[340744968,1729770681992,-500.0,0.00066027,120]
[340744969,1729770682002,-234.09,0.00066027,120]
[340744970,1729770682013,-5499.42,0.00066027,120]
[340744971,1729770682023,-380.78127374,0.00066027,120]
[340744972,1729770682034,-515.53,0.00066027,120]
[340744973,1729770682044,-541.02,0.00066027,120]
[340744974,1729770682054,-560.22,0.00066027,120]
[340744975,1729770682064,-508.61,0.00066027,120]
[340744976,1729770682074,-1548.55,0.00066027,120]
[340744977,1729770682083,-956.25,0.00066027,120]
[340744978,1729770682092,-1040.84,0.00066027,120]
[340744979,1729770682104,-582.09,0.00066027,120]
[340744980,1729770682113,-1299.26,0.00066301,120]
[340744981,1729770682122,-507.96,0.00066301,120]
[340744982,1729770682131,-534.72,0.00066301,120]
[340744983,1729770682141,-1738.65,0.00066301,120]
[340744984,1729770682150,-655.38,0.00066301,120]
[340744985,1729770682161,-1176.07,0.00066301,120]
[340744986,1729770682170,-878.78,0.00066301,120]
[340744987,1729770682182,-1980.98,0.00066301,120]
[340744988,1729770682192,-894.75,0.00066301,120]
[340744989,1729770682201,-579.03,0.00066301,120]
[340744990,1729770682211,-579.71,0.00066301,120]
[340744991,1729770682221,-1003.46,0.00066301,120]
[340744992,1729770682231,-978.86,0.00066301,120]
[340744993,1729770682240,-542.30633815,0.00066301,120]
[340744994,1729770682249,-907.35,0.00066301,120]
[340744995,1729770682259,-1698.95,0.00066301,120]
[340744996,1729770682268,-500.0,0.00066301,120]
[340744997,1729770682278,-1664.51,0.00066301,120]
[340744998,1729770682288,-1365.12,0.00066301,120]
[340744999,1729770682302,-558.83,0.00066301,120]
[340745000,1729770682311,-5079.61,0.00066301,120]
[340745001,1729770682321,-612.41,0.00066301,14]
[340745002,1729770682330,-560.39,0.00066301,120]
[340745003,1729770682342,-679.18,0.00066301,120]
[340745004,1729770682351,-859.58,0.00066301,120]
[340745005,1729770682362,-720.96,0.00066301,120]
[340745006,1729770682373,-902.51,0.00066301,120]
[340745007,1729770682383,-541.21,0.00066301,120]
[340745008,1729770682392,-500.0,0.00066301,120]
[340745009,1729770682403,-898.97,0.00066301,120]
[340745010,1729770682413,-883.91,0.00066301,120]
[340745011,1729770682423,-622.25,0.00066301,120]
[340745012,1729770682432,-4880.54,0.00066301,120]
[340745013,1729770682442,-898.7,0.00066301,120]
[340745014,1729770682452,-1555.96,0.00066301,120]
[340745015,1729770682462,-1699.04,0.00066301,120]
[340745016,1729770682471,-764.73,0.00066301,120]
[340745017,1729770682482,-663.54,0.00066301,120]
[340745018,1729770682492,-898.61,0.00066301,120]
[340745019,1729770682501,-1452.21,0.00066301,120]
[340745020,1729770682511,-13644.44,0.00066301,120]
[340745021,1729770682532,-539.88,0.00066301,120]
[340745022,1729770682552,-16013.8,0.00066301,5]
[340745023,1729770682563,-381.1,0.00066301,7]
[340745024,1729770682573,-500.0,0.00066301,120]
[340745025,1729770682583,-671.29,0.00066301,120]
[340745026,1729770682593,-529.99,0.00066301,120]
[340745027,1729770682604,-725.63,0.00066301,120]
[340745028,1729770682614,-1262.9,0.00066301,120]
[340745029,1729770682623,-1870.81,0.00066301,120]
[340745030,1729770682633,-5826.9,0.00066301,120]
[340745031,1729770682643,-518.14,0.00066301,120]
[340745032,1729770682652,-521.29,0.00066301,120]
[340745033,1729770682663,-953.95,0.00066301,7]
[340745034,1729770682674,-1473.4,0.00066301,120]
[340745035,1729770682684,-23014.84,0.00066301,120]
[340745036,1729770682694,-1061.17,0.00066301,120]
[340745037,1729770682703,-1889.61,0.00066301,120]
[340745038,1729770682714,-500.0,0.00066301,120]
[340745039,1729770682724,-5499.42,0.00066301,120]
[340745040,1729770682734,-515.53,0.00066301,120]
[340745041,1729770682744,-541.02,0.00066301,120]
[340745042,1729770682754,-560.22,0.00066301,120]
[340745043,1729770682764,-508.61,0.00066301,120]
[340745044,1729770682774,-1548.55,0.00066301,120]
[340745045,1729770682783,-956.25,0.00066301,120]
[340745046,1729770682793,-1040.84,0.00066301,120]
[340745047,1729770682802,-500.0,0.00066388,120]
[340745048,1729770682811,-500.0,0.00066388,120]
[340745049,1729770682821,-500.0,0.00066388,120]
[340745050,1729770682831,-500.0,0.00066388,120]
[340745051,1729770682840,-500.0,0.00066388,120]
[340745052,1729770682851,-500.0,0.00066388,120]
[340745053,1729770682861,-500.0,0.00066388,120]
[340745054,1729770682870,-1000.0,0.0006641,120]
[340745055,1729770682880,-1007.803,0.00066429,120]
[340745056,1729770682890,-1459.741023,0.0006653,4]
[340745057,1729770682899,-1299.47,0.00066575,120]
[340745058,1729770682909,-508.0524564,0.00066575,120]
[340745059,1729770682919,-534.78,0.00066575,120]
[340745060,1729770682929,-1738.77,0.00066575,120]
[340745061,1729770682938,-655.46574812,0.00066575,120]
[340745062,1729770682948,-1176.19717474,0.00066575,120]
[340745063,1729770682957,-878.80736728,0.00066575,120]
[340745064,1729770682967,-1981.17725964,0.00066575,120]
[340745065,1729770682977,-894.85251601,0.00066575,120]
[340745066,1729770682987,-579.09973436,0.00066575,120]
[340745067,1729770682997,-579.81302315,0.00066575,120]
[340745068,1729770683008,-1003.58686256,0.00066575,120]
[340745069,1729770683017,-978.97446032,0.00066575,120]
[340745070,1729770683026,-907.39649258,0.00066575,120]
[340745071,1729770683036,-1699.07957646,0.00066575,120]
[340745072,1729770683045,-460.49763738,0.00066575,120]
[340745073,1729770683055,-1664.6816,0.00066575,120]
[340745074,1729770683067,-1365.33642896,0.00066575,120]
[340745075,1729770683077,-558.90223489,0.00066575,120]
[340745076,1729770683087,-5079.64495198,0.00066575,120]
[340745077,1729770683096,-612.41326079,0.00066575,14]
[340745078,1729770683107,-560.47539811,0.00066575,120]
[340745079,1729770683116,-679.18785067,0.00066575,120]
[340745080,1729770683126,-859.62802836,0.00066575,120]
[340745081,1729770683136,-721.06268232,0.00066575,120]
[340745082,1729770683147,-902.67101976,0.00066575,120]
[340745083,1729770683157,-541.27232,0.00066575,120]
[340745084,1729770683280,-479.22749673,0.00066575,120]
[340745085,1729770683292,-899.1143868,0.00066575,120]
[340745086,1729770683304,-884.00074606,0.00066575,120]
[340745087,1729770683314,-622.31294145,0.00066575,120]
[340745088,1729770683323,-4880.54015472,0.00066575,120]
[340745089,1729770683333,-898.81657862,0.00066575,120]
[340745090,1729770683344,-1556.13016459,0.00066575,120]
[340745091,1729770683353,-1699.25862165,0.00066575,120]
[340745092,1729770683362,-764.79214364,0.00066575,120]
[340745093,1729770683374,-663.5519429,0.00066575,120]
[340745094,1729770683384,-898.77767155,0.00066575,120]
[340745095,1729770683393,-1452.28510443,0.00066575,120]
[340745096,1729770683402,-13644.47376104,0.00066575,120]
[340745097,1729770683412,-539.95959173,0.00066575,120]
[340745098,1729770683422,-16013.86090917,0.00066575,5]
[340745099,1729770683431,-381.29149335,0.00066575,7]
[340745100,1729770683441,-336.749788,0.00066575,120]
[340745101,1729770683451,-671.40074196,0.00066575,120]
[340745102,1729770683461,-530.11811014,0.00066575,120]
[340745103,1729770683470,-725.80315807,0.00066575,120]
[340745104,1729770683481,-1263.08296169,0.00066575,120]
[340745105,1729770683491,-1871.04574327,0.00066575,120]
[340745106,1729770683501,-5827.02672854,0.00066575,120]
[340745107,1729770683511,-518.35946183,0.00066575,120]
[340745108,1729770683520,-521.42840232,0.00066575,120]
[340745109,1729770683534,-954.01689653,0.00066575,7]
[340745110,1729770683545,-1473.51933739,0.00066575,120]
[340745111,1729770683555,-23015.0523,0.00066575,120]
[340745112,1729770683565,-1061.30515746,0.00066575,120]
[340745113,1729770683574,-1889.66334753,0.00066575,120]
[340745114,1729770683585,-329.22943655,0.00066575,120]
[340745115,1729770683596,-5499.44509562,0.00066575,120]
[340745116,1729770683610,-515.57278989,0.00066575,120]
[340745117,1729770683620,-541.0896856,0.00066575,120]
[340745118,1729770683631,-560.40740479,0.00066575,120]
[340745119,1729770683643,-508.8,0.00066575,120]
[340745120,1729770683653,-1548.70546705,0.00066575,120]
[340745121,1729770683663,-956.43945661,0.00066575,120]
[340745122,1729770683674,-1040.9843445,0.00066575,120]
[340745123,1729770683685,-2840.3853289,0.00066954,4]
[340745124,1729770683694,-21424.5229302,0.00066954,4]
[340745125,1729770683704,-8847.98590437,0.0006699,120]
[340745126,1729770683713,-5492.57439364,0.00067,7]
[340745127,1729770683723,-5000.0,0.00067,120]
[340745128,1729770683733,-65830.0,0.00067,120]
[340745129,1729770683743,-12191.31572059,0.00067039,15]
[340745130,1729770683754,-621.25,0.00067405,2]
[340745131,1729770683764,-469.37084351,0.00067431,28]
[340745132,1729770683775,-996.24,0.000676,120]
[340745133,1729770683785,-6000.0,0.000678,120]
[340745134,1729770683795,-6000.0,0.000678,120]
[340745135,1729770683805,-443.659999,0.000678,120]
[340745136,1729770683815,-1008.63,0.00067863,120]
[340745137,1729770683825,-1008.63,0.00067863,120]
[340745138,1729770683835,-1008.63,0.00067863,120]
[340745139,1729770683845,-1885.06,0.00067863,120]
[340745140,1729770683855,-500.0,0.00067875,5]
[340745141,1729770683865,-500.0,0.00067884,5]
[340745142,1729770683875,-500.0,0.00067893,5]
[340745143,1729770683885,-300.0,0.000679,2]
[340745144,1729770683894,-150.0,0.000679,40]
[340745145,1729770683903,-624.19,0.00067945,120]
[340745146,1729770683913,-624.19,0.00067945,120]
[340745147,1729770683923,-624.19,0.00067945,120]
[340745148,1729770683933,-624.19,0.00067945,120]
[340745149,1729770683944,-624.19,0.00067945,120]
[340745150,1729770683954,-624.19,0.00067945,120]
[340745151,1729770683964,-624.19,0.00067945,120]
[340745152,1729770683975,-624.19,0.00067945,120]
[340745153,1729770683985,-624.19,0.00067945,120]
[340745154,1729770683996,-624.19,0.00067945,120]
[340745155,1729770684006,-624.19,0.00067945,120]
[340745156,1729770684016,-624.19,0.00067945,120]
[340745157,1729770684026,-624.19,0.00067945,120]
[340745158,1729770684035,-624.19,0.00067945,120]
[340745159,1729770684046,-624.19,0.00067945,120]
[340745160,1729770684056,-624.19,0.00067945,120]
[340745161,1729770684066,-624.19,0.00067945,120]
[340745162,1729770684076,-624.19,0.00067945,120]
[340745163,1729770684087,-624.19,0.00067945,120]
[340745164,1729770684097,-624.19,0.00067945,120]
[340745165,1729770684107,-624.19,0.00067945,120]
[340745166,1729770684117,-624.19,0.00067945,120]
[340745167,1729770684127,-624.19,0.00067945,120]
[340745168,1729770684138,-624.3052331,0.00067945,120]
[340745169,1729770684149,-2982.8260537,0.00067953,5]
[340745170,1729770684158,-22498.9280628,0.00067953,5]
[340745171,1729770684168,-1646.375214,0.00067953,5]
[340745172,1729770684178,-526.39246623,0.0006798,30]
[340745173,1729770684187,-50000.0,0.00068,56]
[340745174,1729770684197,-50000.0,0.00068,66]
[340745175,1729770684207,-10323.93978774,0.00068,120]
[340745176,1729770684225,-123451.20857705,0.00068,120]
[340745177,1729770684374,-566.98689938,0.00064931,120]
[340745178,1729770684389,-902.88310062,0.00064931,120]
[340745179,1729770684398,-1469.87,0.00065205,120]
[340745180,1729770684409,-1469.87,0.00065479,120]
[340745181,1729770684418,-1377.02,0.00065753,120]
[340745182,1729770684428,-1469.87,0.00065753,120]
[340745183,1729770684439,-1377.02,0.00066027,120]
[340745184,1729770684449,-1469.87,0.00066027,120]
[340745185,1729770684459,-582.09,0.00066301,120]
[340745186,1729770684468,-1377.02,0.00066301,120]
[340745187,1729770684480,-1469.87,0.00066301,120]
[340745188,1729770684490,-582.11364,0.00066575,120]
[340745189,1729770684499,-1377.13407667,0.00066575,120]
[340745190,1729770684511,-950.34516243,0.00066575,120]
[340745191,1729770684529,-519.56923627,0.00066575,120]
[340745192,1729770684539,-246.08649659,0.00068,120]
[340745193,1729770684552,-470463.66401708,0.00068,120]
[340745194,1729770684563,-715.85628667,0.00068,120]
[340745195,1729770684575,-6696.69000001,0.00068,120]
[340745196,1729770684588,-4347.7801562,0.00068,120]
[340745197,1729770684599,-35380.10218189,0.00068,120]
[340745198,1729770684879,-1183.33368334,0.00068,120]
[340745199,1729770857802,-262.1242,0.000525,2]
[340745200,1729770857823,-486.778,0.000525,2]
[340745201,1729770857843,-153.0,0.00056183,120]
[340745202,1729770857863,-153.0,0.00056184,120]
[340745203,1729770857884,-153.0,0.00056184,120]
[340745204,1729770857904,-153.0,0.00056196,120]
[340745205,1729770857924,-153.0,0.00056196,120]
[340745206,1729770857943,-153.0,0.00056208,120]
[340745207,1729770857964,-153.0,0.00056208,120]
[340745208,1729770857983,-1119.04546664,0.00059068,30]
[340745209,1729770858003,-325.4722801,0.000595,2]
[340745210,1729770858023,-891.189217,0.000596,118]
[340745211,1729770858044,-2000.0,0.000596,118]
[340745212,1729770858078,-2022.507034,0.0005961,118]
[340745213,1729770871230,500.0,0.0005,2]
[340745214,1729770883223,500.0,0.0006,2]
[340745215,1729770884280,156.39623949,0.0006,2]
[340745216,1729770884327,153.87691817,0.0006,2]
[340745217,1729770887040,153.0,0.00056171,120]
[340745218,1729770887260,153.0,0.00056171,120]
[340745219,1729770893969,-502.813379,0.000601,120]
[340745220,1729770893990,-150.0,0.00060272,9]
[340745221,1729770894011,-500.0,0.00060273,120]
[340745222,1729770894032,-500.0,0.00060273,120]
[340745223,1729770894054,-502.39551463,0.00060273,120]
[340745224,1729770894075,-500.0,0.00060273,120]
[340745225,1729770894095,-500.0,0.00060273,120]
[340745226,1729770894116,-776.56,0.00060273,120]
[340745227,1729770894136,-500.0,0.00060273,120]
[340745228,1729770894158,-500.0,0.00060273,120]
[340745229,1729770894180,-500.0,0.00060273,120]
[340745230,1729770894201,-500.0,0.00060273,120]
[340745231,1729770894224,-1337.44,0.00060273,120]
[340745232,1729770894245,-500.0,0.00060273,120]
[340745233,1729770894267,-500.0,0.00060273,120]
[340745234,1729770894287,-500.0,0.00060273,120]
[340745235,1729770894307,-2024.75,0.00060273,120]
[340745236,1729770894327,-500.0,0.00060273,120]
[340745237,1729770894349,-500.0,0.00060273,120]
[340745238,1729770894370,-500.0,0.00060273,120]
[340745239,1729770894403,-500.0,0.00060273,120]
[340745240,1729770894426,-576.04444621,0.00060273,120]
[340745241,1729770894447,-500.0,0.00060273,120]
[340745242,1729770894468,-402.36058983,0.00060273,120]
[340745243,1729770894489,-500.0,0.00060273,120]
[340745244,1729770894515,-1413.04,0.00060273,120]
[340745245,1729770894536,-500.0,0.00060273,120]
[340745246,1729770894557,-3795.7,0.00060273,120]
[340745247,1729770894579,-500.0,0.00060273,120]
[340745248,1729770894601,-500.0,0.00060273,120]
[340745249,1729770894621,-500.0,0.00060273,120]
[340745250,1729770894642,-500.0,0.00060273,120]
[340745251,1729770894665,-500.0,0.00060273,120]
[340745252,1729770894687,-500.0,0.00060273,120]
[340745253,1729770894708,-208.08388018,0.00060273,120]
[340745254,1729770894729,-500.0,0.00060273,120]
[340745255,1729770894750,-4786.18,0.00060273,120]
[340745256,1729770894771,-164.18476417,0.00060273,120]
[340745257,1729770894792,-500.0,0.00060273,120]
[340745258,1729770894813,-500.0,0.00060273,120]
[340745259,1729770894834,-66.05807058,0.00060273,120]
[340745260,1729771055820,-160.9,0.00049159,30]
[340745261,1729771055841,-172.32534949,0.00056059,2]
[340745262,1729771055863,-153.0,0.0005616,120]
[340745263,1729771055883,-500.0,0.0006,120]
[340745264,1729771138010,166.79,0.00015342,2]
[340745273,1729771627651,-929.482,0.00034973,40]
[340745274,1729771627674,-171.862,0.00034973,40]
[340745275,1729771627695,-154.27627707,0.0005,2]
[340745276,1729771627716,-371.79,0.0005343,7]
[340745277,1729771627737,-929.483,0.0005373,100]
[340745278,1729771627758,-153.0,0.00054795,120]
[340745279,1729771627779,-197.18390868,0.00058,120]
[340745280,1729771627801,-161.28,0.00058581,7]
[340745281,1729771627823,-403.21,0.00058881,2]
[340745282,1729771627844,-500.0,0.0006,120]
[340745283,1729771627867,-150.0,0.0006,120]
[340745284,1729771627888,-150.0,0.0006,120]
[340745285,1729771627910,-150.0,0.0006,120]
[340745286,1729771627931,-150.0,0.0006,120]
[340745287,1729771627954,-150.0,0.0006,120]
[340745288,1729771627976,-250.0,0.0006,120]
[340745289,1729771627996,-150.0,0.0006,120]
[340745290,1729771628017,-150.0,0.0006,120]
[340745291,1729771628038,-150.0,0.0006,120]
[340745292,1729771628060,-150.0,0.0006,120]
[340745293,1729771628080,-150.0,0.0006,120]
[340745294,1729771628100,-250.0,0.0006,120]
[340745295,1729771628121,-150.0,0.0006,120]
[340745296,1729771628142,-202.35027042,0.0006,120]
[340745297,1729771628163,-150.0,0.0006,120]
[340745298,1729771628184,-160.14915805,0.0006,120]
[340745299,1729771628206,-150.0,0.0006,120]
[340745300,1729771628227,-150.0,0.0006,120]
[340745301,1729771628248,-200.99203815,0.0006,120]
[340745302,1729771628269,-244.0,0.0006,120]
[340745303,1729771628290,-244.0,0.0006,120]
[340745304,1729771628312,-244.0,0.0006,120]
[340745305,1729771628333,-244.0,0.0006,120]
[340745306,1729771628354,-244.0,0.0006,120]
[340745307,1729771628374,-244.0,0.0006,120]
[340745308,1729771628395,-244.0,0.0006,120]
[340745309,1729771628417,-244.0,0.0006,120]
[340745310,1729771628437,-244.0,0.0006,120]
[340745311,1729771628458,-244.0,0.0006,120]
[340745312,1729771628478,-244.0,0.0006,120]
[340745313,1729771628499,-246.75050589,0.0006,120]
[340745314,1729771628520,-150.0,0.0006,120]
[340745315,1729771628541,-150.0,0.0006,120]
[340745316,1729771628564,-150.0,0.0006,120]
[340745317,1729771628585,-150.0,0.0006,120]
[340745318,1729771628605,-150.0,0.0006,120]
[340745319,1729771628629,-250.0,0.0006,120]
[340745320,1729771634758,28934.19084174,0.0006,45]
[340745325,1729771831955,-383.04,0.00058796,2]
[340745326,1729771831971,-437.91406685,0.000595,120]
[340745327,1729771831980,-3914.19627593,0.0006,60]
[340745328,1729771832010,-72936.91742407,0.0006,60]
[340745329,1729771832019,-5622.0,0.0006,120]
[340745330,1729771832030,-150.0,0.0006,120]
[340745331,1729771832039,-150.0,0.0006,120]
[340745332,1729771832049,-150.0,0.0006,120]
[340745333,1729771832059,-150.0,0.0006,120]
[340745334,1729771832069,-150.0,0.0006,120]
[340745335,1729771832080,-250.0,0.0006,120]
[340745336,1729771832091,-150.0,0.0006,120]
[340745337,1729771832101,-150.0,0.0006,120]
[340745338,1729771832111,-150.0,0.0006,120]
[340745339,1729771832122,-150.0,0.0006,120]
[340745340,1729771832131,-150.0,0.0006,120]
[340745341,1729771832141,-250.0,0.0006,120]
[340745342,1729771832153,-150.0,0.0006,120]
[340745343,1729771832163,-202.35027042,0.0006,120]
[340745344,1729771832172,-150.0,0.0006,120]
[340745345,1729771832181,-160.14915805,0.0006,120]
[340745346,1729771832191,-150.0,0.0006,120]
[340745347,1729771832203,-150.0,0.0006,120]
[340745348,1729771832213,-200.99203815,0.0006,120]
[340745349,1729771832222,-244.0,0.0006,120]
[340745350,1729771832232,-244.0,0.0006,120]
[340745351,1729771832242,-244.0,0.0006,120]
[340745352,1729771832251,-244.0,0.0006,120]
[340745353,1729771832261,-244.0,0.0006,120]
[340745354,1729771832271,-244.0,0.0006,120]
[340745355,1729771832281,-244.0,0.0006,120]
[340745356,1729771832290,-244.0,0.0006,120]